[Event "Betsys MČR v online bleskovém šachu 2021"]
[Site "Chess.com"]
[Date "2021.04.17"]
[Round "5"]
[White "EXTREME_STRATEGY007"]
[Black "JohnnyDuck64"]
[Result "0-1"]
[WhiteElo "1192"]
[BlackElo "2111"]
[TimeControl "180+1"]
[EndTime "9:47:07 PDT"]
[Termination "Uživatel JohnnyDuck64 zvítězil po vzdání soupeře"]

1. e4 {[%clk 0:03:00.5]} 1... c5 {[%clk 0:02:58.5]} 2. Nf3 {[%clk 0:02:57.2]}
2... d6 {[%clk 0:02:56.9]} 3. d4 {[%clk 0:02:55.3]} 3... cxd4 {[%clk 0:02:56.5]}
4. Nxd4 {[%clk 0:02:54.5]} 4... Nf6 {[%clk 0:02:56.6]} 5. Nc3 {[%clk 0:02:53.6]}
5... a6 {[%clk 0:02:56.6]} 6. Bg5 {[%clk 0:02:47.2]} 6... Qc7 {[%clk 0:02:55.9]}
7. Be2 {[%clk 0:02:33.3]} 7... Nbd7 {[%clk 0:02:53.9]} 8. O-O {[%clk 0:02:31.8]}
8... h6 {[%clk 0:02:44]} 9. Bh4 {[%clk 0:02:30.2]} 9... b5 {[%clk 0:02:34.1]}
10. Nf5 {[%clk 0:02:28.5]} 10... e6 {[%clk 0:02:23.3]} 11. Ng3 {[%clk
0:02:21.8]} 11... g5 {[%clk 0:02:18.5]} 12. e5 {[%clk 0:02:16.5]} 12... Nxe5
{[%clk 0:02:11.8]} 13. f4 {[%clk 0:02:14]} 13... gxh4 {[%clk 0:00:59]} 14. fxe5
{[%clk 0:02:12.5]} 14... Qc5+ {[%clk 0:00:58.4]} 15. Kh1 {[%clk 0:02:09.6]}
15... Qxe5 {[%clk 0:00:57.2]} 16. Rxf6 {[%clk 0:01:52.2]} 16... hxg3 {[%clk
0:00:47.4]} 17. Bf3 {[%clk 0:01:41.2]} 17... Ra7 {[%clk 0:00:29]} 18. Ne4 {[%clk
0:01:23.6]} 18... d5 {[%clk 0:00:23.3]} 19. Qd2 {[%clk 0:01:16.6]} 19... dxe4
{[%clk 0:00:21.1]} 20. Rd1 {[%clk 0:01:15.3]} 20... Rd7 {[%clk 0:00:21.1]} 21.
Rxe6+ {[%clk 0:01:05.4]} 21... Qxe6 {[%clk 0:00:20.3]} 22. Qe3 {[%clk
0:01:02.6]} 22... exf3 {[%clk 0:00:19]} 23. Qxf3 {[%clk 0:01:01.5]} 23... Rxd1+
{[%clk 0:00:17.9]} 24. Qxd1 {[%clk 0:01:00.1]} 24... Bb7 {[%clk 0:00:18.3]} 25.
hxg3 {[%clk 0:00:49.8]} 25... Bc5 {[%clk 0:00:17.6]} 26. Kh2 {[%clk 0:00:44.7]}
26... Qe4 {[%clk 0:00:15.6]} 27. Qd2 {[%clk 0:00:42.7]} 27... Qxg2+ {[%clk
0:00:15.4]} 28. Qxg2 {[%clk 0:00:41.7]} 28... Bxg2 {[%clk 0:00:16.3]} 29. Kxg2
{[%clk 0:00:42.3]} 29... Rg8 {[%clk 0:00:17]} 30. Kh3 {[%clk 0:00:42.3]} 30...
Bd6 {[%clk 0:00:17.9]} 31. g4 {[%clk 0:00:42.4]} 31... f5 {[%clk 0:00:17]} 32.
gxf5 {[%clk 0:00:40.9]} 32... Kf7 {[%clk 0:00:16.5]} 33. Kh4 {[%clk 0:00:40.5]}
33... Kf6 {[%clk 0:00:16.9]} 34. Kh5 {[%clk 0:00:40.5]} 34... Kxf5 {[%clk
0:00:17.2]} 35. Kxh6 {[%clk 0:00:40.7]} 35... Rg1 {[%clk 0:00:16.8]} 36. b3
{[%clk 0:00:38.1]} 36... Bf4+ {[%clk 0:00:16.9]} 37. Kh7 {[%clk 0:00:37]} 37...
Kf6 {[%clk 0:00:16.9]} 38. c4 {[%clk 0:00:36.6]} 38... Kf7 {[%clk 0:00:17.3]}
39. Kh8 {[%clk 0:00:36.2]} 39... Be5+ {[%clk 0:00:16.1]} 0-1

[Event "Betsys MČR v online bleskovém šachu 2021"]
[Site "Chess.com"]
[Date "2021.04.17"]
[Round "5"]
[White "penguinorodriguez"]
[Black "Trickov"]
[Result "1/2-1/2"]
[WhiteElo "2552"]
[BlackElo "2395"]
[TimeControl "180+1"]
[EndTime "9:47:10 PDT"]
[Termination "Remíza opakováním pozice"]

1. d4 {[%clk 0:03:00.9]} 1... d5 {[%clk 0:02:58.8]} 2. Bf4 {[%clk 0:03:01.5]}
2... Nf6 {[%clk 0:02:57.5]} 3. e3 {[%clk 0:03:02]} 3... c6 {[%clk 0:02:56.9]} 4.
c4 {[%clk 0:03:02.2]} 4... Bf5 {[%clk 0:02:56]} 5. Nc3 {[%clk 0:03:02.1]} 5...
e6 {[%clk 0:02:55.8]} 6. Nf3 {[%clk 0:03:02]} 6... Nbd7 {[%clk 0:02:55.4]} 7.
Qb3 {[%clk 0:03:02.1]} 7... Qb6 {[%clk 0:02:54.6]} 8. c5 {[%clk 0:03:02.5]} 8...
Qxb3 {[%clk 0:02:54.5]} 9. axb3 {[%clk 0:03:03.4]} 9... a6 {[%clk 0:02:54.7]}
10. b4 {[%clk 0:03:03.3]} 10... Rc8 {[%clk 0:02:53.6]} 11. h3 {[%clk 0:03:03.3]}
11... h6 {[%clk 0:02:53.4]} 12. Nd2 {[%clk 0:02:59.8]} 12... g5 {[%clk 0:02:53]}
13. Bh2 {[%clk 0:02:58.1]} 13... Bg7 {[%clk 0:02:53]} 14. Nb3 {[%clk 0:02:52.4]}
14... O-O {[%clk 0:02:19.9]} 15. Na5 {[%clk 0:02:16.3]} 15... b5 {[%clk
0:01:52.7]} 16. cxb6 {[%clk 0:02:07.5]} 16... Nxb6 {[%clk 0:01:24.5]} 17. Bxa6
{[%clk 0:02:07.2]} 17... Ra8 {[%clk 0:01:23.3]} 18. Bb7 {[%clk 0:01:51.7]} 18...
Ra7 {[%clk 0:01:23.2]} 19. Bxc6 {[%clk 0:01:51.8]} 19... Rc8 {[%clk 0:01:09.3]}
20. O-O {[%clk 0:01:48.3]} 20... Nc4 {[%clk 0:01:04.2]} 21. Nb5 {[%clk
0:01:05.2]} 21... Rxa5 {[%clk 0:00:58.6]} 22. bxa5 {[%clk 0:01:05.6]} 22... Rxc6
{[%clk 0:00:58]} 23. a6 {[%clk 0:01:06.1]} 23... Nb6 {[%clk 0:00:49.7]} 24. a7
{[%clk 0:01:02.8]} 24... Bd3 {[%clk 0:00:43.5]} 25. Rfc1 {[%clk 0:00:34.5]}
25... Bxb5 {[%clk 0:00:40.6]} 26. a8=Q+ {[%clk 0:00:25]} 26... Nxa8 {[%clk
0:00:36.2]} 27. Rxa8+ {[%clk 0:00:25.9]} 27... Kh7 {[%clk 0:00:33.3]} 28. Rxc6
{[%clk 0:00:23.4]} 28... Bxc6 {[%clk 0:00:32.9]} 29. Rc8 {[%clk 0:00:22.4]}
29... Bb5 {[%clk 0:00:27.8]} 30. f3 {[%clk 0:00:18.6]} 30... Kg6 {[%clk
0:00:25.9]} 31. Kf2 {[%clk 0:00:15.1]} 31... Nd7 {[%clk 0:00:23.1]} 32. Rc7
{[%clk 0:00:15.2]} 32... Bf8 {[%clk 0:00:20.4]} 33. Rb7 {[%clk 0:00:15.1]} 33...
Bc6 {[%clk 0:00:20]} 34. Rc7 {[%clk 0:00:15.7]} 34... Bb5 {[%clk 0:00:20.3]} 35.
Rb7 {[%clk 0:00:16.3]} 35... Bc6 {[%clk 0:00:20]} 36. Rc7 {[%clk 0:00:16.9]}
36... Bb5 {[%clk 0:00:20.3]} 1/2-1/2

[Event "Betsys MČR v online bleskovém šachu 2021"]
[Site "Chess.com"]
[Date "2021.04.17"]
[Round "5"]
[White "martin1804"]
[Black "Herracek"]
[Result "0-1"]
[WhiteElo "2297"]
[BlackElo "2611"]
[TimeControl "180+1"]
[EndTime "9:47:11 PDT"]
[Termination "Uživatel Herracek zvítězil po vzdání soupeře"]

1. d4 {[%clk 0:02:59.5]} 1... Nf6 {[%clk 0:02:59.8]} 2. Nf3 {[%clk 0:02:52.5]}
2... e6 {[%clk 0:03:00]} 3. Bf4 {[%clk 0:02:50]} 3... c5 {[%clk 0:02:58.6]} 4.
e3 {[%clk 0:02:49.6]} 4... Qb6 {[%clk 0:02:58.5]} 5. Na3 {[%clk 0:02:34.3]} 5...
cxd4 {[%clk 0:02:32.3]} 6. exd4 {[%clk 0:01:50.3]} 6... Bxa3 {[%clk 0:02:30.9]}
7. bxa3 {[%clk 0:01:49.2]} 7... Qa5+ {[%clk 0:02:30.3]} 8. Bd2 {[%clk 0:01:45]}
8... Qxa3 {[%clk 0:02:30.1]} 9. Bd3 {[%clk 0:01:42.8]} 9... Nc6 {[%clk
0:02:28.6]} 10. O-O {[%clk 0:01:37]} 10... O-O {[%clk 0:02:28.1]} 11. c3 {[%clk
0:01:26.5]} 11... d5 {[%clk 0:02:24.6]} 12. Qc2 {[%clk 0:01:25.6]} 12... h6
{[%clk 0:02:21.5]} 13. Rab1 {[%clk 0:01:20.7]} 13... Qd6 {[%clk 0:02:15.2]} 14.
Rfe1 {[%clk 0:01:17.7]} 14... Nd7 {[%clk 0:02:02.5]} 15. Re2 {[%clk 0:00:54]}
15... b6 {[%clk 0:01:54.9]} 16. Rbe1 {[%clk 0:00:51.4]} 16... Bb7 {[%clk
0:01:53.7]} 17. Ne5 {[%clk 0:00:45.9]} 17... Ndxe5 {[%clk 0:01:39.7]} 18. dxe5
{[%clk 0:00:46.8]} 18... Qa3 {[%clk 0:01:35.2]} 19. Re3 {[%clk 0:00:40.4]} 19...
Rac8 {[%clk 0:01:06.9]} 20. Qb1 {[%clk 0:00:36.8]} 20... Ba6 {[%clk 0:00:56.2]}
21. Rg3 {[%clk 0:00:34.1]} 21... Kh8 {[%clk 0:00:36.8]} 22. Rh3 {[%clk
0:00:13.2]} 22... Bxd3 {[%clk 0:00:36.4]} 23. Qxd3 {[%clk 0:00:12.5]} 23... f5
{[%clk 0:00:36.9]} 24. Bxh6 {[%clk 0:00:10.3]} 24... gxh6 {[%clk 0:00:35.6]} 25.
Rxh6+ {[%clk 0:00:11.2]} 25... Kg7 {[%clk 0:00:36.1]} 26. Qh3 {[%clk 0:00:11.4]}
26... Rh8 {[%clk 0:00:36.1]} 27. Qg3+ {[%clk 0:00:02.4]} 27... Kxh6 {[%clk
0:00:31.1]} 28. h4 {[%clk 0:00:03.3]} 28... Qe7 {[%clk 0:00:27.7]} 29. Qf4+
{[%clk 0:00:03.4]} 29... Kh7 {[%clk 0:00:27.3]} 30. Re3 {[%clk 0:00:04.1]} 30...
Rcg8 {[%clk 0:00:27.1]} 31. g3 {[%clk 0:00:03.3]} 31... Rg4 {[%clk 0:00:26.9]}
32. Kg2 {[%clk 0:00:03.6]} 32... Rxf4 {[%clk 0:00:26.4]} 0-1

[Event "Betsys MČR v online bleskovém šachu 2021"]
[Site "Chess.com"]
[Date "2021.04.17"]
[Round "5"]
[White "xPsylocke"]
[Black "maelic"]
[Result "1-0"]
[WhiteElo "2183"]
[BlackElo "1779"]
[TimeControl "180+1"]
[EndTime "9:47:11 PDT"]
[Termination "Uživatel xPsylocke zvítězil na čas"]

1. e4 {[%clk 0:03:00.9]} 1... e6 {[%clk 0:03:00.3]} 2. d3 {[%clk 0:03:00.4]}
2... d5 {[%clk 0:03:00.4]} 3. Qe2 {[%clk 0:02:59.9]} 3... Nf6 {[%clk 0:02:58.4]}
4. g3 {[%clk 0:02:53.9]} 4... Be7 {[%clk 0:02:44.9]} 5. Bg2 {[%clk 0:02:53.5]}
5... O-O {[%clk 0:02:45.1]} 6. e5 {[%clk 0:02:46.4]} 6... Nfd7 {[%clk
0:02:42.8]} 7. f4 {[%clk 0:02:46.8]} 7... c5 {[%clk 0:02:34.4]} 8. Nf3 {[%clk
0:02:45.7]} 8... b5 {[%clk 0:02:33.4]} 9. O-O {[%clk 0:02:39.4]} 9... Bb7 {[%clk
0:02:32.8]} 10. Be3 {[%clk 0:02:39]} 10... Qc7 {[%clk 0:02:31]} 11. c3 {[%clk
0:02:33.1]} 11... Nc6 {[%clk 0:02:28.1]} 12. Nbd2 {[%clk 0:02:33.3]} 12... a5
{[%clk 0:02:28]} 13. h4 {[%clk 0:02:29.7]} 13... b4 {[%clk 0:02:18.1]} 14. c4
{[%clk 0:02:28.5]} 14... Nb6 {[%clk 0:01:39.3]} 15. h5 {[%clk 0:02:18.4]} 15...
dxc4 {[%clk 0:01:20.3]} 16. dxc4 {[%clk 0:02:19.3]} 16... Rfd8 {[%clk
0:01:19.1]} 17. b3 {[%clk 0:01:59.4]} 17... a4 {[%clk 0:01:18]} 18. h6 {[%clk
0:01:55.8]} 18... g6 {[%clk 0:01:10.7]} 19. Ne4 {[%clk 0:01:55.6]} 19... Nd4
{[%clk 0:01:00.4]} 20. Bxd4 {[%clk 0:01:51.1]} 20... cxd4 {[%clk 0:00:45.8]} 21.
Rad1 {[%clk 0:01:50.1]} 21... axb3 {[%clk 0:00:35.7]} 22. axb3 {[%clk 0:01:51]}
22... Bc5 {[%clk 0:00:19.7]} 23. Kh2 {[%clk 0:01:42]} 23... Ra3 {[%clk
0:00:16.7]} 24. Nxd4 {[%clk 0:00:47.4]} 24... Bxd4 {[%clk 0:00:09.4]} 25. Rd3
{[%clk 0:00:20.8]} 25... Bxe4 {[%clk 0:00:08.8]} 26. Qxe4 {[%clk 0:00:19.8]}
26... Bc3 {[%clk 0:00:07.8]} 27. Rfd1 {[%clk 0:00:18.4]} 27... Raa8 {[%clk
0:00:02.4]} 28. Rd6 {[%clk 0:00:17.6]} 1-0

[Event "Betsys MČR v online bleskovém šachu 2021"]
[Site "Chess.com"]
[Date "2021.04.17"]
[Round "5"]
[White "horalek"]
[Black "Dejfos"]
[Result "0-1"]
[WhiteElo "1345"]
[BlackElo "1803"]
[TimeControl "180+1"]
[EndTime "9:47:12 PDT"]
[Termination "Uživatel Dejfos zvítězil na čas"]

1. e4 {[%clk 0:02:59.2]} 1... c6 {[%clk 0:02:49.4]} 2. Nf3 {[%clk 0:02:57.1]}
2... d5 {[%clk 0:02:49.3]} 3. exd5 {[%clk 0:02:54.8]} 3... cxd5 {[%clk 0:02:49]}
4. d4 {[%clk 0:02:54.7]} 4... Nf6 {[%clk 0:02:47.1]} 5. Bd3 {[%clk 0:02:51]}
5... e6 {[%clk 0:02:46.9]} 6. O-O {[%clk 0:02:48.9]} 6... Bd6 {[%clk 0:02:46.4]}
7. Bg5 {[%clk 0:02:46.6]} 7... O-O {[%clk 0:02:46.2]} 8. Nbd2 {[%clk 0:02:43.4]}
8... Nbd7 {[%clk 0:02:44.4]} 9. Re1 {[%clk 0:02:40.6]} 9... Re8 {[%clk
0:02:43.2]} 10. Ne5 {[%clk 0:02:38.6]} 10... Qc7 {[%clk 0:02:37.2]} 11. f4
{[%clk 0:02:33.2]} 11... h6 {[%clk 0:02:33.1]} 12. Bh4 {[%clk 0:02:27.7]} 12...
Be7 {[%clk 0:02:02.4]} 13. Bg3 {[%clk 0:02:17]} 13... Bd6 {[%clk 0:01:49.5]} 14.
c3 {[%clk 0:02:10.6]} 14... b6 {[%clk 0:01:46.1]} 15. Qc2 {[%clk 0:01:55.6]}
15... a5 {[%clk 0:01:09.1]} 16. Ndf3 {[%clk 0:01:50.2]} 16... Ba6 {[%clk
0:01:06.2]} 17. Bxa6 {[%clk 0:01:38.2]} 17... Rxa6 {[%clk 0:01:05.1]} 18. Qd3
{[%clk 0:01:31.9]} 18... Raa8 {[%clk 0:01:04]} 19. Rac1 {[%clk 0:01:28.9]} 19...
Ne4 {[%clk 0:01:00.1]} 20. Nd2 {[%clk 0:01:17.6]} 20... Nxd2 {[%clk 0:00:52.7]}
21. Qxd2 {[%clk 0:01:15]} 21... Nf6 {[%clk 0:00:53.2]} 22. Bf2 {[%clk
0:00:47.4]} 22... Ne4 {[%clk 0:00:53.1]} 23. g3 {[%clk 0:00:41.8]} 23... Nxd2
{[%clk 0:00:51.9]} 24. Kg2 {[%clk 0:00:34.3]} 24... Bxe5 {[%clk 0:00:50.3]} 25.
fxe5 {[%clk 0:00:32.6]} 25... Ne4 {[%clk 0:00:49.3]} 26. Be3 {[%clk 0:00:28.8]}
26... b5 {[%clk 0:00:47]} 27. a3 {[%clk 0:00:26.6]} 27... Rac8 {[%clk
0:00:45.8]} 28. Rf1 {[%clk 0:00:20]} 28... Qe7 {[%clk 0:00:44.7]} 29. Rf3 {[%clk
0:00:14.8]} 29... b4 {[%clk 0:00:43.7]} 30. Rcf1 {[%clk 0:00:09.6]} 30... Rf8
{[%clk 0:00:40.6]} 31. cxb4 {[%clk 0:00:07.2]} 31... axb4 {[%clk 0:00:40.2]} 32.
axb4 {[%clk 0:00:05.5]} 32... Qxb4 {[%clk 0:00:39.3]} 33. g4 {[%clk 0:00:03.5]}
33... Qxb2+ {[%clk 0:00:37.4]} 34. Kh3 {[%clk 0:00:02.4]} 34... Ng5+ {[%clk
0:00:35.8]} 35. Kg3 {[%clk 0:00:01]} 35... Nxf3 {[%clk 0:00:34.7]} 0-1

[Event "Betsys MČR v online bleskovém šachu 2021"]
[Site "Chess.com"]
[Date "2021.04.17"]
[Round "5"]
[White "SayQueen"]
[Black "JaraLinhart"]
[Result "1-0"]
[WhiteElo "1995"]
[BlackElo "1675"]
[TimeControl "180+1"]
[EndTime "9:47:14 PDT"]
[Termination "Uživatel SayQueen zvítězil na čas"]

1. e4 {[%clk 0:02:58.4]} 1... c6 {[%clk 0:02:56.2]} 2. d4 {[%clk 0:02:57]} 2...
d5 {[%clk 0:02:56.5]} 3. exd5 {[%clk 0:02:57]} 3... cxd5 {[%clk 0:02:56.8]} 4.
c4 {[%clk 0:02:57]} 4... Nf6 {[%clk 0:02:48.2]} 5. Nc3 {[%clk 0:02:56.5]} 5...
Nc6 {[%clk 0:02:48.2]} 6. Nf3 {[%clk 0:02:54.1]} 6... e6 {[%clk 0:02:43.1]} 7.
cxd5 {[%clk 0:02:42.3]} 7... Nxd5 {[%clk 0:02:32.4]} 8. Bd3 {[%clk 0:02:36.7]}
8... Be7 {[%clk 0:02:29.9]} 9. O-O {[%clk 0:02:34.7]} 9... O-O {[%clk
0:02:24.8]} 10. a3 {[%clk 0:02:31.7]} 10... Bf6 {[%clk 0:02:18.9]} 11. Re1
{[%clk 0:02:27.3]} 11... a6 {[%clk 0:02:18]} 12. Be4 {[%clk 0:02:17.8]} 12...
Nce7 {[%clk 0:02:16.3]} 13. Ne5 {[%clk 0:02:07.4]} 13... b5 {[%clk 0:01:54.3]}
14. Ng4 {[%clk 0:02:03.4]} 14... Ng6 {[%clk 0:01:39]} 15. Nxf6+ {[%clk 0:01:54]}
15... Qxf6 {[%clk 0:01:30.6]} 16. Bxd5 {[%clk 0:01:51.7]} 16... exd5 {[%clk
0:01:27]} 17. Nxd5 {[%clk 0:01:51.5]} 17... Qf5 {[%clk 0:01:22.2]} 18. Ne3
{[%clk 0:01:42.6]} 18... Qd7 {[%clk 0:01:11.2]} 19. d5 {[%clk 0:01:37.9]} 19...
Bb7 {[%clk 0:01:08.5]} 20. Qf3 {[%clk 0:01:11.3]} 20... Rac8 {[%clk 0:00:54.6]}
21. Bd2 {[%clk 0:01:09]} 21... Ne5 {[%clk 0:00:52.6]} 22. Qg3 {[%clk 0:01:05.3]}
22... Nd3 {[%clk 0:00:46.1]} 23. Red1 {[%clk 0:00:53.8]} 23... Nxb2 {[%clk
0:00:37.7]} 24. Rdc1 {[%clk 0:00:46]} 24... Nd3 {[%clk 0:00:31.2]} 25. Rxc8
{[%clk 0:00:44.2]} 25... Rxc8 {[%clk 0:00:30.3]} 26. h4 {[%clk 0:00:40.3]} 26...
Bxd5 {[%clk 0:00:19.5]} 27. Ng4 {[%clk 0:00:31.5]} 27... Kh8 {[%clk 0:00:01.6]}
28. Qxd3 {[%clk 0:00:25.5]} 28... Qxg4 {[%clk 0:00:01.7]} 29. Qxd5 {[%clk
0:00:23.4]} 1-0

[Event "Betsys MČR v online bleskovém šachu 2021"]
[Site "Chess.com"]
[Date "2021.04.17"]
[Round "5"]
[White "keram91"]
[Black "Toman_26"]
[Result "0-1"]
[WhiteElo "753"]
[BlackElo "1049"]
[TimeControl "180+1"]
[EndTime "9:47:14 PDT"]
[Termination "Uživatel Toman_26 zvítězil matem"]

1. d4 {[%clk 0:03:00.9]} 1... e6 {[%clk 0:02:58.4]} 2. g3 {[%clk 0:02:54.4]}
2... Nf6 {[%clk 0:02:58.5]} 3. h4 {[%clk 0:02:53.4]} 3... d5 {[%clk 0:02:58.6]}
4. Bf4 {[%clk 0:02:49.9]} 4... c5 {[%clk 0:02:57]} 5. Nf3 {[%clk 0:02:45.6]}
5... Nc6 {[%clk 0:02:38]} 6. dxc5 {[%clk 0:02:41]} 6... Bxc5 {[%clk 0:02:34.1]}
7. e3 {[%clk 0:02:39.7]} 7... Qb6 {[%clk 0:02:28.6]} 8. c3 {[%clk 0:02:30.9]}
8... Qxb2 {[%clk 0:02:21.8]} 9. Ne5 {[%clk 0:02:20.7]} 9... Qxa1 {[%clk
0:02:06.2]} 10. Nxf7 {[%clk 0:02:06.2]} 10... Kxf7 {[%clk 0:02:02.6]} 11. Bb5
{[%clk 0:02:02.5]} 11... Qxa2 {[%clk 0:01:53.1]} 12. Bxc6 {[%clk 0:01:52.1]}
12... bxc6 {[%clk 0:01:52.7]} 13. h5 {[%clk 0:01:34.3]} 13... Ba6 {[%clk
0:01:49.7]} 14. Nd2 {[%clk 0:01:18]} 14... Rac8 {[%clk 0:01:04.2]} 15. h6 {[%clk
0:01:07.9]} 15... g6 {[%clk 0:01:01.7]} 16. Be5 {[%clk 0:01:03]} 16... Rhf8
{[%clk 0:00:59.5]} 17. Bxf6 {[%clk 0:01:02.4]} 17... Kxf6 {[%clk 0:00:59.5]} 18.
Qf3+ {[%clk 0:00:59.3]} 18... Ke7 {[%clk 0:00:58]} 19. Qd1 {[%clk 0:00:45.2]}
19... Bd3 {[%clk 0:00:53.5]} 20. Rh4 {[%clk 0:00:38.4]} 20... a5 {[%clk
0:00:45.3]} 21. Rf4 {[%clk 0:00:35.4]} 21... Rxf4 {[%clk 0:00:44.1]} 22. gxf4
{[%clk 0:00:34.3]} 22... a4 {[%clk 0:00:42.8]} 23. f5 {[%clk 0:00:24.5]} 23...
exf5 {[%clk 0:00:41.8]} 24. e4 {[%clk 0:00:22]} 24... dxe4 {[%clk 0:00:40.3]}
25. c4 {[%clk 0:00:20]} 25... a3 {[%clk 0:00:38]} 26. f4 {[%clk 0:00:14.4]}
26... Qc2 {[%clk 0:00:37.1]} 27. Qxc2 {[%clk 0:00:12.6]} 27... Bxc2 {[%clk
0:00:36.7]} 28. Nf1 {[%clk 0:00:10.1]} 28... a2 {[%clk 0:00:36.4]} 29. Kd2
{[%clk 0:00:04.6]} 29... a1=Q {[%clk 0:00:32.8]} 30. Kxc2 {[%clk 0:00:04.8]}
30... Qa2+ {[%clk 0:00:27.6]} 31. Kc3 {[%clk 0:00:04]} 31... Rb8 {[%clk
0:00:25.1]} 32. Ne3 {[%clk 0:00:02.1]} 32... Rb3# {[%clk 0:00:24.1]} 0-1

[Event "Betsys MČR v online bleskovém šachu 2021"]
[Site "Chess.com"]
[Date "2021.04.17"]
[Round "5"]
[White "honzasoucek"]
[Black "Pokemonchess"]
[Result "0-1"]
[WhiteElo "1629"]
[BlackElo "1942"]
[TimeControl "180+1"]
[EndTime "9:47:15 PDT"]
[Termination "Uživatel Pokemonchess zvítězil na čas"]

1. e4 {[%clk 0:02:58.4]} 1... c5 {[%clk 0:02:59]} 2. Nf3 {[%clk 0:02:57.8]} 2...
Nc6 {[%clk 0:02:58.2]} 3. d4 {[%clk 0:02:58]} 3... cxd4 {[%clk 0:02:55.8]} 4.
Nxd4 {[%clk 0:02:58.5]} 4... Nf6 {[%clk 0:02:55.7]} 5. Nc3 {[%clk 0:02:58.2]}
5... g6 {[%clk 0:02:52.2]} 6. Be3 {[%clk 0:02:54.3]} 6... Bg7 {[%clk 0:02:51.7]}
7. Be2 {[%clk 0:02:53.8]} 7... O-O {[%clk 0:02:51.6]} 8. O-O {[%clk 0:02:53.8]}
8... d5 {[%clk 0:02:47.1]} 9. exd5 {[%clk 0:02:34.1]} 9... Nxd5 {[%clk
0:02:45.8]} 10. Nxd5 {[%clk 0:02:32.6]} 10... Qxd5 {[%clk 0:02:44.6]} 11. Nxc6
{[%clk 0:02:31.9]} 11... Qxc6 {[%clk 0:02:38]} 12. c3 {[%clk 0:02:31.9]} 12...
Be6 {[%clk 0:02:36.2]} 13. Bf3 {[%clk 0:02:31]} 13... Qc7 {[%clk 0:02:34.8]} 14.
Qa4 {[%clk 0:02:16.2]} 14... a6 {[%clk 0:02:27.4]} 15. Rad1 {[%clk 0:02:03.1]}
15... b5 {[%clk 0:02:17.2]} 16. Qa3 {[%clk 0:01:39.5]} 16... Rab8 {[%clk
0:02:14.2]} 17. Qxa6 {[%clk 0:01:37.2]} 17... Bc4 {[%clk 0:02:11.1]} 18. Rfe1
{[%clk 0:01:21.4]} 18... b4 {[%clk 0:02:02.6]} 19. Qa7 {[%clk 0:00:59]} 19...
Qc8 {[%clk 0:00:56.3]} 20. cxb4 {[%clk 0:00:43.7]} 20... Be6 {[%clk 0:00:34]}
21. b3 {[%clk 0:00:17.6]} 21... Rxb4 {[%clk 0:00:32.7]} 22. Rc1 {[%clk
0:00:17.3]} 22... Qd8 {[%clk 0:00:17.3]} 23. Red1 {[%clk 0:00:16.8]} 23... Qb8
{[%clk 0:00:14.1]} 24. Qxb8 {[%clk 0:00:12.2]} 24... Rfxb8 {[%clk 0:00:15]} 25.
Rc5 {[%clk 0:00:06.1]} 25... R4b6 {[%clk 0:00:13.3]} 26. Rdc1 {[%clk 0:00:04.1]}
26... Ra6 {[%clk 0:00:13.2]} 27. Bf4 {[%clk 0:00:01.1]} 27... Rf8 {[%clk
0:00:10.8]} 0-1

[Event "Betsys MČR v online bleskovém šachu 2021"]
[Site "Chess.com"]
[Date "2021.04.17"]
[Round "5"]
[White "Dan1612"]
[Black "horvi1"]
[Result "0-1"]
[WhiteElo "1985"]
[BlackElo "2237"]
[TimeControl "180+1"]
[EndTime "9:47:16 PDT"]
[Termination "Uživatel horvi1 zvítězil po vzdání soupeře"]

1. e4 {[%clk 0:03:00.9]} 1... e6 {[%clk 0:02:59]} 2. c4 {[%clk 0:02:59.8]} 2...
d5 {[%clk 0:02:57.9]} 3. cxd5 {[%clk 0:03:00.3]} 3... exd5 {[%clk 0:02:57.9]} 4.
exd5 {[%clk 0:03:00.9]} 4... Nf6 {[%clk 0:02:57.4]} 5. Nc3 {[%clk 0:03:01.1]}
5... Nxd5 {[%clk 0:02:56.8]} 6. Bc4 {[%clk 0:03:00.8]} 6... Be6 {[%clk
0:02:56.1]} 7. Qf3 {[%clk 0:02:56.8]} 7... Nb4 {[%clk 0:02:20.8]} 8. Bxe6 {[%clk
0:02:36]} 8... fxe6 {[%clk 0:02:16.6]} 9. Qe4 {[%clk 0:01:49.7]} 9... Nd3+
{[%clk 0:02:06.6]} 10. Kf1 {[%clk 0:01:27.3]} 10... Nc6 {[%clk 0:01:43.7]} 11.
Qxe6+ {[%clk 0:01:21.4]} 11... Be7 {[%clk 0:01:41.2]} 12. Nf3 {[%clk 0:01:13.3]}
12... Rf8 {[%clk 0:01:19.5]} 13. Nd5 {[%clk 0:00:56.7]} 13... Nc5 {[%clk
0:01:01.7]} 14. Nxc7+ {[%clk 0:00:23.8]} 14... Qxc7 {[%clk 0:01:00.7]} 15. Qh3
{[%clk 0:00:24.3]} 15... Qd7 {[%clk 0:00:56.7]} 16. Qxh7 {[%clk 0:00:21.5]}
16... Qd3+ {[%clk 0:00:56.3]} 17. Qxd3 {[%clk 0:00:21.2]} 17... Nxd3 {[%clk
0:00:57.2]} 18. Ke2 {[%clk 0:00:21.3]} 18... Nf4+ {[%clk 0:00:56.8]} 19. Kd1
{[%clk 0:00:21.4]} 19... Nxg2 {[%clk 0:00:56.3]} 20. Rg1 {[%clk 0:00:21.8]}
20... Nh4 {[%clk 0:00:47.8]} 21. Nxh4 {[%clk 0:00:19.8]} 21... Bxh4 {[%clk
0:00:46.6]} 22. Rxg7 {[%clk 0:00:20.4]} 22... O-O-O {[%clk 0:00:40.7]} 23. Kc2
{[%clk 0:00:17.9]} 23... Rxf2 {[%clk 0:00:38.9]} 24. Rg4 {[%clk 0:00:16.5]}
24... Rxh2 {[%clk 0:00:38.4]} 25. b3 {[%clk 0:00:16.5]} 25... Bf6 {[%clk
0:00:36.7]} 26. Rb1 {[%clk 0:00:15.7]} 26... Nd4+ {[%clk 0:00:35.9]} 27. Kd3
{[%clk 0:00:15.1]} 27... Nxb3+ {[%clk 0:00:31]} 28. Kc4 {[%clk 0:00:14.3]} 28...
Nxc1 {[%clk 0:00:30.5]} 29. Rxc1 {[%clk 0:00:14.7]} 29... Rhxd2 {[%clk
0:00:26.5]} 30. Kb5+ {[%clk 0:00:14.6]} 30... Kb8 {[%clk 0:00:26.1]} 31. Rgc4
{[%clk 0:00:14.3]} 31... Rb2+ {[%clk 0:00:23.6]} 32. Ka5 {[%clk 0:00:14.3]}
32... Rd5+ {[%clk 0:00:22.3]} 33. Ka4 {[%clk 0:00:14]} 33... b5+ {[%clk
0:00:22.4]} 34. Ka3 {[%clk 0:00:13.4]} 34... bxc4 {[%clk 0:00:22.6]} 35. Rxc4
{[%clk 0:00:12.5]} 35... Ra5+ {[%clk 0:00:22.6]} 0-1